[Event "Late-Titled-Tuesday-Blitz-January-30-2024"]
[Site "Chess.com"]
[Date "2024.01.30"]
[Round "2"]
[White "Genghis_K"]
[Black "GlavkonVVS"]
[Result "1-0"]
[WhiteElo "2842"]
[BlackElo "2564"]
[TimeControl "180+1"]
[EndTime "14:18:00 PST"]
[Termination "Genghis_K won by resignation"]

1. e4 {[%clk 0:02:52.3]} 1... Nf6 {[%clk 0:02:59.8]} 2. e5 {[%clk 0:02:52.1]}
2... Nd5 {[%clk 0:03:00.1]} 3. d4 {[%clk 0:02:52.4]} 3... d6 {[%clk 0:03:00.3]}
4. Nf3 {[%clk 0:02:52.8]} 4... Bg4 {[%clk 0:03:00]} 5. Be2 {[%clk 0:02:50.9]}
5... e6 {[%clk 0:03:00.4]} 6. h3 {[%clk 0:02:50.7]} 6... Bh5 {[%clk 0:03:00.5]}
7. c4 {[%clk 0:02:50.9]} 7... Nb6 {[%clk 0:03:00.4]} 8. exd6 {[%clk 0:02:51.6]}
8... cxd6 {[%clk 0:03:00.4]} 9. Nc3 {[%clk 0:02:52.3]} 9... Be7 {[%clk
0:03:00.5]} 10. d5 {[%clk 0:02:52.4]} 10... e5 {[%clk 0:03:00.7]} 11. g4 {[%clk
0:02:52.3]} 11... Bg6 {[%clk 0:03:00.5]} 12. h4 {[%clk 0:02:52.7]} 12... h5
{[%clk 0:03:00.6]} 13. g5 {[%clk 0:02:52.8]} 13... N8d7 {[%clk 0:03:00.2]} 14.
Be3 {[%clk 0:02:53]} 14... Rc8 {[%clk 0:02:59.8]} 15. b3 {[%clk 0:02:53]} 15...
Nc5 {[%clk 0:03:00]} 16. Bxc5 {[%clk 0:02:52.6]} 16... Rxc5 {[%clk 0:02:59.9]}
17. Bd3 {[%clk 0:02:53]} 17... O-O {[%clk 0:02:56.4]} 18. Qc2 {[%clk 0:02:41.6]}
18... Nd7 {[%clk 0:02:34.1]} 19. Nd2 {[%clk 0:02:36.8]} 19... Qe8 {[%clk
0:02:24.2]} 20. O-O-O {[%clk 0:02:28]} 20... a6 {[%clk 0:02:20.7]} 21. Kb1
{[%clk 0:02:21.4]} 21... b5 {[%clk 0:02:20.5]} 22. Bxg6 {[%clk 0:02:15.8]} 22...
fxg6 {[%clk 0:02:20.5]} 23. Nde4 {[%clk 0:02:14.8]} 23... Rc8 {[%clk 0:02:13]}
24. cxb5 {[%clk 0:02:13.7]} 24... axb5 {[%clk 0:02:12.7]} 25. Qe2 {[%clk
0:02:12]} 25... b4 {[%clk 0:02:10.9]} 26. Nb5 {[%clk 0:02:11.9]} 26... Rc5
{[%clk 0:01:58]} 27. Nbxd6 {[%clk 0:01:52.6]} 27... Bxd6 {[%clk 0:01:50.9]} 28.
Nxd6 {[%clk 0:01:53.2]} 28... Qb8 {[%clk 0:01:50.6]} 29. Ne4 {[%clk 0:01:51.4]}
29... Ra5 {[%clk 0:01:47.2]} 30. d6 {[%clk 0:01:48.9]} 30... Rf4 {[%clk
0:01:44.5]} 31. f3 {[%clk 0:01:48.5]} 31... Qf8 {[%clk 0:01:32.3]} 32. Rd3
{[%clk 0:01:38.6]} 32... Qf5 {[%clk 0:01:30.7]} 33. Rc1 {[%clk 0:01:38.3]} 33...
Rxh4 {[%clk 0:01:25.2]} 34. Qd2 {[%clk 0:01:29.8]} 34... Rh3 {[%clk 0:01:06.4]}
35. Qxb4 {[%clk 0:01:19.1]} 35... Ra8 {[%clk 0:01:03.4]} 36. Qb7 {[%clk
0:01:13.9]} 36... Rb8 {[%clk 0:00:59.7]} 37. Qd5+ {[%clk 0:00:52.8]} 37... Kh7
{[%clk 0:00:59.7]} 38. Rdc3 {[%clk 0:00:52.1]} 38... Rb4 {[%clk 0:00:45.3]} 39.
Rc8 {[%clk 0:00:50]} 39... Nf8 {[%clk 0:00:32.7]} 40. d7 {[%clk 0:00:32]} 40...
Rd4 {[%clk 0:00:20.3]} 41. Qxd4 {[%clk 0:00:22]} 41... exd4 {[%clk 0:00:19.3]}
42. d8=Q {[%clk 0:00:21]} 42... Rxf3 {[%clk 0:00:19.2]} 43. Qe7 {[%clk
0:00:13.1]} 43... Rf4 {[%clk 0:00:17.4]} 44. Rxf8 {[%clk 0:00:12]} 44... Qxf8
{[%clk 0:00:16.7]} 45. Nf6+ {[%clk 0:00:09.9]} 45... Rxf6 {[%clk 0:00:16.5]} 46.
gxf6 {[%clk 0:00:10.2]} 46... Qxf6 {[%clk 0:00:13.9]} 47. Qxf6 {[%clk
0:00:09.5]} 47... gxf6 {[%clk 0:00:14.5]} 48. b4 {[%clk 0:00:10.3]} 48... d3
{[%clk 0:00:14.5]} 49. b5 {[%clk 0:00:11.2]} 1-0

[Event "Late-Titled-Tuesday-Blitz-January-30-2024"]
[Site "Chess.com"]
[Date "2024.01.30"]
[Round "2"]
[White "betta2004"]
[Black "Arlo2024"]
[Result "0-1"]
[WhiteElo "2499"]
[BlackElo "2275"]
[TimeControl "180+1"]
[EndTime "14:18:00 PST"]
[Termination "Arlo2024 won by resignation"]

1. d4 {[%clk 0:02:55.1]} 1... Nf6 {[%clk 0:02:59.6]} 2. Nc3 {[%clk 0:02:56]}
2... d5 {[%clk 0:02:57.8]} 3. Bf4 {[%clk 0:02:51.6]} 3... a6 {[%clk 0:02:57.8]}
4. e3 {[%clk 0:02:45.2]} 4... b5 {[%clk 0:02:57]} 5. Nf3 {[%clk 0:02:40.7]} 5...
Bb7 {[%clk 0:02:57.1]} 6. Ne5 {[%clk 0:02:39.4]} 6... e6 {[%clk 0:02:57.5]} 7.
Bd3 {[%clk 0:02:32.3]} 7... c5 {[%clk 0:02:57.3]} 8. dxc5 {[%clk 0:02:27.3]}
8... Bxc5 {[%clk 0:02:58.2]} 9. O-O {[%clk 0:02:27.7]} 9... Nc6 {[%clk
0:02:57.2]} 10. a4 {[%clk 0:02:25.1]} 10... b4 {[%clk 0:02:50.4]} 11. Ne2 {[%clk
0:02:23.7]} 11... Nxe5 {[%clk 0:02:45.4]} 12. Bxe5 {[%clk 0:02:22.8]} 12... Bd6
{[%clk 0:02:45.5]} 13. Bg3 {[%clk 0:02:22.4]} 13... a5 {[%clk 0:02:43.2]} 14.
Bb5+ {[%clk 0:02:02]} 14... Ke7 {[%clk 0:02:34.8]} 15. Qd3 {[%clk 0:01:49.9]}
15... Bxg3 {[%clk 0:02:23.5]} 16. Nxg3 {[%clk 0:01:45.2]} 16... Qb6 {[%clk
0:02:15]} 17. Rac1 {[%clk 0:01:37.3]} 17... Rhc8 {[%clk 0:02:10.2]} 18. h3
{[%clk 0:01:29.7]} 18... Ba6 {[%clk 0:02:09]} 19. Bxa6 {[%clk 0:01:22.2]} 19...
Qxa6 {[%clk 0:02:09.4]} 20. Qd4 {[%clk 0:01:21.8]} 20... Qa7 {[%clk 0:02:07.1]}
21. Qh4 {[%clk 0:01:21.7]} 21... Qc7 {[%clk 0:01:51.1]} 22. Nh5 {[%clk
0:01:09.1]} 22... Qe5 {[%clk 0:01:46.6]} 23. Nxf6 {[%clk 0:01:05.6]} 23... gxf6
{[%clk 0:01:35.4]} 24. Qxh7 {[%clk 0:00:56.8]} 24... Qxb2 {[%clk 0:01:33.7]} 25.
Qd3 {[%clk 0:00:42.4]} 25... Rc4 {[%clk 0:01:27.9]} 26. g3 {[%clk 0:00:38.7]}
26... Rac8 {[%clk 0:01:26.7]} 27. h4 {[%clk 0:00:32.2]} 27... Qc3 {[%clk
0:01:24]} 28. Qe2 {[%clk 0:00:24.4]} 28... Qe5 {[%clk 0:01:21.7]} 29. Kg2 {[%clk
0:00:20.7]} 29... Rg8 {[%clk 0:01:19.5]} 30. Qf3 {[%clk 0:00:17.2]} 30... Rxh4
{[%clk 0:01:15.9]} 31. Rh1 {[%clk 0:00:16.6]} 31... Rc4 {[%clk 0:01:09.1]} 32.
Rh7 {[%clk 0:00:15.2]} 32... Qe4 {[%clk 0:01:03.5]} 33. Qxe4 {[%clk 0:00:12.3]}
33... Rxe4 {[%clk 0:01:04.4]} 34. c3 {[%clk 0:00:12.3]} 34... Rc4 {[%clk
0:01:02.8]} 35. Kf3 {[%clk 0:00:10.6]} 35... Rgc8 {[%clk 0:01:01]} 36. Ke2
{[%clk 0:00:10]} 36... Rxc3 {[%clk 0:00:59.4]} 37. Rch1 {[%clk 0:00:10.2]} 37...
Ra3 {[%clk 0:00:55.3]} 38. Rg7 {[%clk 0:00:08.6]} 38... Rxa4 {[%clk 0:00:54.6]}
39. Rhh7 {[%clk 0:00:08.6]} 39... Rf8 {[%clk 0:00:55]} 40. Kd3 {[%clk
0:00:09.2]} 40... Ra2 {[%clk 0:00:54.3]} 41. f4 {[%clk 0:00:09.4]} 41... a4
{[%clk 0:00:51.6]} 42. g4 {[%clk 0:00:09.4]} 42... a3 {[%clk 0:00:50.1]} 43. g5
{[%clk 0:00:09.8]} 43... fxg5 {[%clk 0:00:49.7]} 44. fxg5 {[%clk 0:00:10.7]}
44... Rg2 {[%clk 0:00:42.5]} 45. g6 {[%clk 0:00:10.6]} 45... Rf2 {[%clk
0:00:34.1]} 46. e4 {[%clk 0:00:07.9]} 46... dxe4+ {[%clk 0:00:32.7]} 47. Kxe4
{[%clk 0:00:08.8]} 47... a2 {[%clk 0:00:32.6]} 48. Ke3 {[%clk 0:00:09.1]} 48...
Rf5 {[%clk 0:00:31.2]} 49. gxf7 {[%clk 0:00:08.8]} 49... R5xf7 {[%clk
0:00:30.8]} 50. Rxf7+ {[%clk 0:00:07.3]} 50... Rxf7 {[%clk 0:00:31.3]} 51. Rh1
{[%clk 0:00:08.2]} 51... b3 {[%clk 0:00:30.3]} 0-1

[Event "Late-Titled-Tuesday-Blitz-January-30-2024"]
[Site "Chess.com"]
[Date "2024.01.30"]
[Round "2"]
[White "BilodeauA"]
[Black "SaqoChess_Twitch"]
[Result "1-0"]
[WhiteElo "3022"]
[BlackElo "2625"]
[TimeControl "180+1"]
[EndTime "14:18:01 PST"]
[Termination "BilodeauA won by checkmate"]

1. e4 {[%clk 0:03:00.9]} 1... c5 {[%clk 0:02:59.4]} 2. Nf3 {[%clk 0:03:01.3]}
2... d6 {[%clk 0:02:59.7]} 3. d4 {[%clk 0:03:01.9]} 3... cxd4 {[%clk 0:03:00.6]}
4. Nxd4 {[%clk 0:03:02.8]} 4... Nf6 {[%clk 0:03:01.1]} 5. Nc3 {[%clk 0:03:03.6]}
5... g6 {[%clk 0:03:01.5]} 6. Be2 {[%clk 0:03:02.5]} 6... Bg7 {[%clk 0:03:02.1]}
7. Be3 {[%clk 0:03:00.3]} 7... O-O {[%clk 0:03:02]} 8. O-O {[%clk 0:03:00.7]}
8... Nc6 {[%clk 0:03:02.3]} 9. Nb3 {[%clk 0:03:01.1]} 9... d5 {[%clk 0:03:01.7]}
10. exd5 {[%clk 0:02:57.9]} 10... Nb4 {[%clk 0:03:01.1]} 11. Bf3 {[%clk
0:02:55.4]} 11... Bf5 {[%clk 0:03:00.7]} 12. Rc1 {[%clk 0:02:56.2]} 12... Rc8
{[%clk 0:02:58.8]} 13. a3 {[%clk 0:02:51.5]} 13... Rxc3 {[%clk 0:02:46.8]} 14.
axb4 {[%clk 0:02:51.1]} 14... Bxc2 {[%clk 0:02:38.4]} 15. Rxc2 {[%clk
0:02:48.2]} 15... Rxb3 {[%clk 0:02:38.9]} 16. Rc8 {[%clk 0:02:30.2]} 16... Qxc8
{[%clk 0:02:35.6]} 17. Qxb3 {[%clk 0:02:30.9]} 17... Qb8 {[%clk 0:02:31]} 18.
Ra1 {[%clk 0:02:16.8]} 18... a6 {[%clk 0:02:28]} 19. b5 {[%clk 0:02:14.2]} 19...
axb5 {[%clk 0:02:28]} 20. Qxb5 {[%clk 0:02:15.1]} 20... Rc8 {[%clk 0:02:26]} 21.
g3 {[%clk 0:02:15.3]} 21... h5 {[%clk 0:02:25.8]} 22. Bf4 {[%clk 0:02:09.5]}
22... Rc7 {[%clk 0:02:11.6]} 23. Qb6 {[%clk 0:02:06]} 23... Ne8 {[%clk
0:01:58.2]} 24. Bxc7 {[%clk 0:02:01.4]} 24... Nxc7 {[%clk 0:01:59.1]} 25. Ra7
{[%clk 0:01:51.6]} 25... Qc8 {[%clk 0:01:10.3]} 26. Qxb7 {[%clk 0:01:45.2]}
26... Qf5 {[%clk 0:01:10]} 27. Kg2 {[%clk 0:01:33]} 27... h4 {[%clk 0:01:04.5]}
28. h3 {[%clk 0:01:26.3]} 28... Be5 {[%clk 0:00:58]} 29. d6 {[%clk 0:00:35.9]}
29... Bxd6 {[%clk 0:00:52.2]} 30. Qe4 {[%clk 0:00:36.3]} 30... Qf6 {[%clk
0:00:43.9]} 31. Rb7 {[%clk 0:00:31.7]} 31... hxg3 {[%clk 0:00:40.8]} 32. fxg3
{[%clk 0:00:32.6]} 32... Qg5 {[%clk 0:00:36]} 33. Qe1 {[%clk 0:00:29.2]} 33...
Ne6 {[%clk 0:00:31.7]} 34. h4 {[%clk 0:00:27]} 34... Qf5 {[%clk 0:00:24.2]} 35.
Qe4 {[%clk 0:00:18.5]} 35... Qa5 {[%clk 0:00:20.9]} 36. Rb3 {[%clk 0:00:17]}
36... Qd2+ {[%clk 0:00:20.5]} 37. Qe2 {[%clk 0:00:17.4]} 37... Qc1 {[%clk
0:00:17.6]} 38. Rd3 {[%clk 0:00:17.3]} 38... g5 {[%clk 0:00:16.2]} 39. Rd1
{[%clk 0:00:17.4]} 39... Qc5 {[%clk 0:00:15]} 40. Bd5 {[%clk 0:00:17.7]} 40...
Nd4 {[%clk 0:00:10.8]} 41. Qe4 {[%clk 0:00:16.4]} 41... Nc2 {[%clk 0:00:06.7]}
42. Qg6+ {[%clk 0:00:16.3]} 42... Kh8 {[%clk 0:00:05.9]} 43. Qh5+ {[%clk
0:00:17.1]} 43... Kg7 {[%clk 0:00:04.6]} 44. Qxf7+ {[%clk 0:00:17.6]} 44... Kh6
{[%clk 0:00:05.2]} 45. hxg5+ {[%clk 0:00:16.9]} 45... Kxg5 {[%clk 0:00:06.1]}
46. Qg7+ {[%clk 0:00:16.3]} 46... Kf5 {[%clk 0:00:05.9]} 47. Rf1+ {[%clk
0:00:16.5]} 47... Qf2+ {[%clk 0:00:03.6]} 48. Rxf2+ {[%clk 0:00:16.6]} 48... Bf4
{[%clk 0:00:03.4]} 49. Rxf4# {[%clk 0:00:16.1]} 1-0

[Event "Late-Titled-Tuesday-Blitz-January-30-2024"]
[Site "Chess.com"]
[Date "2024.01.30"]
[Round "2"]
[White "ljm509"]
[Black "VitaliyChayka"]
[Result "0-1"]
[WhiteElo "2017"]
[BlackElo "2440"]
[TimeControl "180+1"]
[EndTime "14:18:02 PST"]
[Termination "VitaliyChayka won on time"]

1. e4 {[%clk 0:02:58.8]} 1... d6 {[%clk 0:03:00.1]} 2. d4 {[%clk 0:02:58.1]}
2... Nf6 {[%clk 0:03:00.8]} 3. Nc3 {[%clk 0:02:57.7]} 3... e5 {[%clk 0:03:01.4]}
4. Be3 {[%clk 0:02:56.3]} 4... Nbd7 {[%clk 0:03:00.7]} 5. f3 {[%clk 0:02:55.1]}
5... Be7 {[%clk 0:03:01.2]} 6. Qd2 {[%clk 0:02:52.7]} 6... c6 {[%clk 0:03:01.8]}
7. O-O-O {[%clk 0:02:52.4]} 7... O-O {[%clk 0:03:01.7]} 8. Kb1 {[%clk
0:02:50.4]} 8... b5 {[%clk 0:03:01.2]} 9. dxe5 {[%clk 0:02:48.4]} 9... dxe5
{[%clk 0:03:00.3]} 10. g4 {[%clk 0:02:44.3]} 10... Nb6 {[%clk 0:02:57]} 11. Qf2
{[%clk 0:02:31.9]} 11... Qc7 {[%clk 0:02:56.7]} 12. Bc5 {[%clk 0:02:31.2]} 12...
Be6 {[%clk 0:02:53.4]} 13. Bd3 {[%clk 0:02:20.3]} 13... Rfd8 {[%clk 0:02:40.9]}
14. a3 {[%clk 0:02:03]} 14... Nc4 {[%clk 0:02:07.1]} 15. Nge2 {[%clk 0:01:58.9]}
15... Qb7 {[%clk 0:01:48.3]} 16. g5 {[%clk 0:01:42.2]} 16... Bxc5 {[%clk
0:01:46.9]} 17. Qxc5 {[%clk 0:01:40.1]} 17... Nd7 {[%clk 0:01:47.6]} 18. Qf2
{[%clk 0:01:25.5]} 18... a5 {[%clk 0:01:47.5]} 19. Bxc4 {[%clk 0:01:15.5]} 19...
Bxc4 {[%clk 0:01:36.9]} 20. b3 {[%clk 0:00:54]} 20... Be6 {[%clk 0:01:36.4]} 21.
f4 {[%clk 0:00:46.7]} 21... exf4 {[%clk 0:01:33.1]} 22. Nxf4 {[%clk 0:00:45.1]}
22... b4 {[%clk 0:01:29.2]} 23. axb4 {[%clk 0:00:42.3]} 23... axb4 {[%clk
0:01:30.1]} 24. Na4 {[%clk 0:00:41]} 24... Qb5 {[%clk 0:01:21.8]} 25. Nxe6
{[%clk 0:00:40.1]} 25... fxe6 {[%clk 0:01:22.7]} 26. Rd6 {[%clk 0:00:31.9]}
26... Ne5 {[%clk 0:00:56.7]} 27. Rhd1 {[%clk 0:00:22.5]} 27... Rxd6 {[%clk
0:00:51.7]} 28. Rxd6 {[%clk 0:00:22.2]} 28... Rf8 {[%clk 0:00:44.2]} 29. Qd2
{[%clk 0:00:15.1]} 29... Nc4 {[%clk 0:00:37.9]} 30. bxc4 {[%clk 0:00:11.6]}
30... Qxa4 {[%clk 0:00:32.3]} 31. Rd8 {[%clk 0:00:11.1]} 31... b3 {[%clk
0:00:14.3]} 32. Rxf8+ {[%clk 0:00:10.1]} 32... Kxf8 {[%clk 0:00:15.2]} 33. Qd8+
{[%clk 0:00:09.6]} 33... Kf7 {[%clk 0:00:15.9]} 34. Qd7+ {[%clk 0:00:08.7]}
34... Kf8 {[%clk 0:00:16.1]} 35. Qd8+ {[%clk 0:00:08.1]} 35... Kf7 {[%clk
0:00:16.2]} 36. Qd7+ {[%clk 0:00:08.3]} 36... Kg6 {[%clk 0:00:16.8]} 37. Qxe6+
{[%clk 0:00:08.1]} 37... Kxg5 {[%clk 0:00:16.8]} 38. Qf5+ {[%clk 0:00:07]} 38...
Kh4 {[%clk 0:00:17.3]} 39. Qf4+ {[%clk 0:00:04.8]} 39... Kh5 {[%clk 0:00:17.7]}
40. Qf5+ {[%clk 0:00:04]} 40... Kh6 {[%clk 0:00:17.8]} 41. Qh3+ {[%clk
0:00:02.8]} 41... Kg6 {[%clk 0:00:17.5]} 42. Qg4+ {[%clk 0:00:03.2]} 42... Kf6
{[%clk 0:00:17.6]} 43. Qf5+ {[%clk 0:00:02.8]} 43... Ke7 {[%clk 0:00:18]} 44.
Qe5+ {[%clk 0:00:02.2]} 44... Kd7 {[%clk 0:00:18.6]} 45. Qxg7+ {[%clk
0:00:02.3]} 45... Kd6 {[%clk 0:00:19.2]} 0-1

[Event "Late-Titled-Tuesday-Blitz-January-30-2024"]
[Site "Chess.com"]
[Date "2024.01.30"]
[Round "2"]
[White "ScarpaChess"]
[Black "Siniauski"]
[Result "0-1"]
[WhiteElo "2352"]
[BlackElo "2612"]
[TimeControl "180+1"]
[EndTime "14:18:04 PST"]
[Termination "Siniauski won on time"]

1. e4 {[%clk 0:03:00.9]} 1... e6 {[%clk 0:03:00]} 2. d4 {[%clk 0:02:54.5]} 2...
d5 {[%clk 0:03:00.3]} 3. Nc3 {[%clk 0:02:55.1]} 3... Nf6 {[%clk 0:02:59.9]} 4.
e5 {[%clk 0:02:55.6]} 4... Nfd7 {[%clk 0:02:59.7]} 5. f4 {[%clk 0:02:55.5]} 5...
c5 {[%clk 0:03:00.1]} 6. Nf3 {[%clk 0:02:55.4]} 6... Nc6 {[%clk 0:03:00.5]} 7.
Be3 {[%clk 0:02:55.7]} 7... a6 {[%clk 0:03:00.7]} 8. Qd2 {[%clk 0:02:55.4]} 8...
b5 {[%clk 0:03:00.7]} 9. a3 {[%clk 0:02:51.6]} 9... Qb6 {[%clk 0:03:00.8]} 10.
Ne2 {[%clk 0:02:36.7]} 10... a5 {[%clk 0:02:57.5]} 11. f5 {[%clk 0:02:33]} 11...
exf5 {[%clk 0:02:51]} 12. Nf4 {[%clk 0:02:28.1]} 12... Qb7 {[%clk 0:02:51.2]}
13. dxc5 {[%clk 0:02:24.3]} 13... Bxc5 {[%clk 0:02:50.8]} 14. e6 {[%clk
0:02:20.7]} 14... fxe6 {[%clk 0:02:42.1]} 15. Nxe6 {[%clk 0:02:19.8]} 15... d4
{[%clk 0:02:16.6]} 16. Nxg7+ {[%clk 0:01:28.6]} 16... Kf7 {[%clk 0:02:13.1]} 17.
Bh6 {[%clk 0:01:25.3]} 17... Nde5 {[%clk 0:02:00.8]} 18. Ng5+ {[%clk 0:01:21.8]}
18... Ke7 {[%clk 0:01:55.6]} 19. O-O-O {[%clk 0:01:18.2]} 19... Ng4 {[%clk
0:01:52.4]} 20. Re1+ {[%clk 0:01:14.3]} 20... Nce5 {[%clk 0:01:50.4]} 21. Nf3
{[%clk 0:01:03.2]} 21... Ne3 {[%clk 0:01:15.1]} 22. Nxe5 {[%clk 0:01:02.1]}
22... Ra6 {[%clk 0:01:03.8]} 23. Nd3 {[%clk 0:00:51.9]} 23... Ba7 {[%clk
0:00:58.3]} 24. Bg5+ {[%clk 0:00:34.4]} 24... Kf7 {[%clk 0:00:58.7]} 25. Nh5
{[%clk 0:00:32]} 25... Qd5 {[%clk 0:00:57.4]} 26. Kb1 {[%clk 0:00:27.1]} 26...
Be6 {[%clk 0:00:24.1]} 27. b3 {[%clk 0:00:19.7]} 27... Rc8 {[%clk 0:00:24.8]}
28. Nhf4 {[%clk 0:00:18.3]} 28... Qe4 {[%clk 0:00:25.1]} 29. Nf2 {[%clk
0:00:07.9]} 29... Qxc2+ {[%clk 0:00:16.1]} 30. Qxc2 {[%clk 0:00:07.7]} 30...
Rxc2 {[%clk 0:00:17]} 31. Nxe6 {[%clk 0:00:07.8]} 31... Rxf2 {[%clk 0:00:14.5]}
32. Nf4 {[%clk 0:00:03.7]} 32... Rc6 {[%clk 0:00:09.7]} 33. Bd3 {[%clk
0:00:04.3]} 33... Bb8 {[%clk 0:00:07.2]} 34. g3 {[%clk 0:00:04.1]} 34... Bxf4
{[%clk 0:00:06.7]} 35. Bxf4 {[%clk 0:00:05]} 35... Ng2 {[%clk 0:00:07.3]} 36.
Rhf1 {[%clk 0:00:04.3]} 36... Nxe1 {[%clk 0:00:06.9]} 37. Rxf2 {[%clk
0:00:04.6]} 37... Nxd3 {[%clk 0:00:07.6]} 38. Rd2 {[%clk 0:00:04.6]} 38... Rc3
{[%clk 0:00:07.3]} 39. Bg5 {[%clk 0:00:01.7]} 39... Rxb3+ {[%clk 0:00:07.6]} 40.
Kc2 {[%clk 0:00:02.4]} 40... Rc3+ {[%clk 0:00:08.3]} 41. Kd1 {[%clk 0:00:02.4]}
41... b4 {[%clk 0:00:08.6]} 42. axb4 {[%clk 0:00:02.4]} 42... axb4 {[%clk
0:00:09.5]} 43. Bd8 {[%clk 0:00:02.5]} 43... b3 {[%clk 0:00:09.7]} 44. Ba5
{[%clk 0:00:03.2]} 44... b2 {[%clk 0:00:10.2]} 0-1

[Event "Late-Titled-Tuesday-Blitz-January-30-2024"]
[Site "Chess.com"]
[Date "2024.01.30"]
[Round "2"]
[White "familijatop71"]
[Black "LastHeroJr"]
[Result "0-1"]
[WhiteElo "2222"]
[BlackElo "2501"]
[TimeControl "180+1"]
[EndTime "14:18:05 PST"]
[Termination "LastHeroJr won on time"]

1. e4 {[%clk 0:03:00.9]} 1... d6 {[%clk 0:02:56.2]} 2. d4 {[%clk 0:03:00.8]}
2... g6 {[%clk 0:02:56.4]} 3. Nc3 {[%clk 0:03:01.1]} 3... a6 {[%clk 0:02:56.4]}
4. f4 {[%clk 0:02:59.1]} 4... b5 {[%clk 0:02:55.8]} 5. Nf3 {[%clk 0:02:58.5]}
5... Bb7 {[%clk 0:02:56]} 6. Bd3 {[%clk 0:02:58.5]} 6... Bg7 {[%clk 0:02:56.3]}
7. Qe2 {[%clk 0:02:53.7]} 7... b4 {[%clk 0:02:54.8]} 8. Nd1 {[%clk 0:02:52.2]}
8... Nf6 {[%clk 0:02:54.2]} 9. O-O {[%clk 0:02:44.9]} 9... O-O {[%clk
0:02:53.7]} 10. e5 {[%clk 0:02:31.1]} 10... Nd5 {[%clk 0:02:49.4]} 11. Nf2
{[%clk 0:02:23.5]} 11... e6 {[%clk 0:02:20.3]} 12. Ne4 {[%clk 0:02:17.8]} 12...
Qe7 {[%clk 0:02:08.7]} 13. c4 {[%clk 0:02:17]} 13... bxc3 {[%clk 0:02:07.5]} 14.
bxc3 {[%clk 0:02:17.3]} 14... Nd7 {[%clk 0:01:58.6]} 15. Ba3 {[%clk 0:02:08.4]}
15... f5 {[%clk 0:01:43]} 16. exd6 {[%clk 0:01:52.8]} 16... cxd6 {[%clk
0:01:40.6]} 17. Bxd6 {[%clk 0:01:46.2]} 17... Qe8 {[%clk 0:01:27.5]} 18. Bxf8
{[%clk 0:01:41.1]} 18... Bxf8 {[%clk 0:01:14.9]} 19. Neg5 {[%clk 0:01:29.2]}
19... Nxf4 {[%clk 0:01:14.8]} 20. Qe3 {[%clk 0:01:25.7]} 20... Nxd3 {[%clk
0:01:13]} 21. Qxd3 {[%clk 0:01:22.2]} 21... h6 {[%clk 0:01:11.8]} 22. Nh3 {[%clk
0:01:15.7]} 22... Bd6 {[%clk 0:01:04.7]} 23. Rab1 {[%clk 0:01:10.5]} 23... Be4
{[%clk 0:01:02.9]} 24. Qd2 {[%clk 0:01:05.9]} 24... Bxb1 {[%clk 0:01:01.2]} 25.
Rxb1 {[%clk 0:01:06.8]} 25... Kg7 {[%clk 0:00:54.4]} 26. c4 {[%clk 0:01:06.2]}
26... Rb8 {[%clk 0:00:52.6]} 27. Rxb8 {[%clk 0:01:02.3]} 27... Qxb8 {[%clk
0:00:53.5]} 28. c5 {[%clk 0:01:02.8]} 28... Bc7 {[%clk 0:00:42.9]} 29. c6 {[%clk
0:00:59.9]} 29... Nf6 {[%clk 0:00:40.4]} 30. Nf2 {[%clk 0:00:37.5]} 30... Nd5
{[%clk 0:00:37.4]} 31. Nd3 {[%clk 0:00:27.9]} 31... Qb1+ {[%clk 0:00:28.4]} 32.
Kf2 {[%clk 0:00:27.1]} 32... Qb5 {[%clk 0:00:26.5]} 33. Nde5 {[%clk 0:00:24.8]}
33... Bb6 {[%clk 0:00:20.8]} 34. h4 {[%clk 0:00:14.3]} 34... Qa4 {[%clk
0:00:20.7]} 35. h5 {[%clk 0:00:13]} 35... g5 {[%clk 0:00:20.8]} 36. Nxg5 {[%clk
0:00:13.2]} 36... Qxd4+ {[%clk 0:00:20.6]} 37. Qxd4 {[%clk 0:00:09.7]} 37...
Bxd4+ {[%clk 0:00:21.5]} 38. Ke2 {[%clk 0:00:08.4]} 38... hxg5 {[%clk
0:00:21.9]} 39. Nd7 {[%clk 0:00:05.1]} 39... Kh6 {[%clk 0:00:18.8]} 40. Kd3
{[%clk 0:00:04.9]} 40... Bg1 {[%clk 0:00:17.1]} 41. Kc4 {[%clk 0:00:04.5]} 41...
Kxh5 {[%clk 0:00:17.1]} 42. Nf6+ {[%clk 0:00:03.8]} 42... Kg6 {[%clk 0:00:15.3]}
43. Ne8 {[%clk 0:00:02.9]} 43... Kf7 {[%clk 0:00:13.6]} 44. c7 {[%clk
0:00:01.6]} 44... Nxc7 {[%clk 0:00:13.9]} 45. Nxc7 {[%clk 0:00:02]} 45... a5
{[%clk 0:00:13.1]} 46. Nb5 {[%clk 0:00:01.5]} 46... f4 {[%clk 0:00:13.4]} 0-1

[Event "Late-Titled-Tuesday-Blitz-January-30-2024"]
[Site "Chess.com"]
[Date "2024.01.30"]
[Round "2"]
[White "akanga001"]
[Black "topalovkramnik"]
[Result "0-1"]
[WhiteElo "1974"]
[BlackElo "2437"]
[TimeControl "180+1"]
[EndTime "14:18:06 PST"]
[Termination "topalovkramnik won on time"]

1. d4 {[%clk 0:02:55.6]} 1... d5 {[%clk 0:02:59.6]} 2. c4 {[%clk 0:02:55.1]}
2... e6 {[%clk 0:02:54.7]} 3. e3 {[%clk 0:02:53.6]} 3... Nf6 {[%clk 0:02:50.6]}
4. Qc2 {[%clk 0:02:52.7]} 4... Be7 {[%clk 0:02:45.7]} 5. Nf3 {[%clk 0:02:51.8]}
5... O-O {[%clk 0:02:45.2]} 6. Nc3 {[%clk 0:02:48.4]} 6... a6 {[%clk 0:02:44.9]}
7. cxd5 {[%clk 0:02:42.2]} 7... exd5 {[%clk 0:02:42.4]} 8. Bd3 {[%clk
0:02:40.3]} 8... Be6 {[%clk 0:02:29.9]} 9. O-O {[%clk 0:02:38.9]} 9... h6 {[%clk
0:02:30.4]} 10. b3 {[%clk 0:02:35.4]} 10... Nbd7 {[%clk 0:02:30.9]} 11. Bb2
{[%clk 0:02:31.8]} 11... Rc8 {[%clk 0:02:31.2]} 12. Qe2 {[%clk 0:02:26]} 12...
c5 {[%clk 0:02:30.1]} 13. Rfd1 {[%clk 0:02:13.2]} 13... Qb6 {[%clk 0:02:23.5]}
14. Rac1 {[%clk 0:02:07.8]} 14... Rfd8 {[%clk 0:02:18]} 15. Na4 {[%clk
0:02:06.1]} 15... Qa7 {[%clk 0:02:15.5]} 16. dxc5 {[%clk 0:02:04.6]} 16... Nxc5
{[%clk 0:02:09.4]} 17. Nxc5 {[%clk 0:02:02.2]} 17... Bxc5 {[%clk 0:02:00]} 18.
Nd4 {[%clk 0:01:58.8]} 18... Be7 {[%clk 0:01:53]} 19. Bb1 {[%clk 0:01:56]} 19...
Qb6 {[%clk 0:01:44]} 20. Qd3 {[%clk 0:01:48.2]} 20... Ne4 {[%clk 0:01:39.2]} 21.
f3 {[%clk 0:01:42.3]} 21... Nf6 {[%clk 0:00:58.1]} 22. Ne2 {[%clk 0:01:40.8]}
22... Bc5 {[%clk 0:00:55.5]} 23. Bxf6 {[%clk 0:01:33.5]} 23... gxf6 {[%clk
0:00:53.4]} 24. Nd4 {[%clk 0:01:19.5]} 24... f5 {[%clk 0:00:51.7]} 25. g4 {[%clk
0:01:10.8]} 25... Bxd4 {[%clk 0:00:50.3]} 26. exd4 {[%clk 0:01:07.9]} 26... Rxc1
{[%clk 0:00:45.8]} 27. Rxc1 {[%clk 0:01:07.3]} 27... fxg4 {[%clk 0:00:46.7]} 28.
Qh7+ {[%clk 0:01:04.1]} 28... Kf8 {[%clk 0:00:46.8]} 29. Qxh6+ {[%clk
0:01:03.5]} 29... Ke8 {[%clk 0:00:45.2]} 30. Qh8+ {[%clk 0:00:58.1]} 30... Ke7
{[%clk 0:00:42.8]} 31. Qh4+ {[%clk 0:00:48.9]} 31... Kd7 {[%clk 0:00:43.2]} 32.
Rc5 {[%clk 0:00:40.6]} 32... Qb4 {[%clk 0:00:41.1]} 33. Qf2 {[%clk 0:00:20.5]}
33... gxf3 {[%clk 0:00:38.4]} 34. Bd3 {[%clk 0:00:15.8]} 34... Rg8+ {[%clk
0:00:35.7]} 35. Kh1 {[%clk 0:00:13]} 35... Qa3 {[%clk 0:00:18]} 36. Qxf3 {[%clk
0:00:10.9]} 36... Qxa2 {[%clk 0:00:16.9]} 37. Rxd5+ {[%clk 0:00:08.7]} 37...
Bxd5 {[%clk 0:00:13.6]} 38. Qxd5+ {[%clk 0:00:08.4]} 38... Kc8 {[%clk
0:00:14.3]} 39. Bf1 {[%clk 0:00:02.5]} 39... Qf2 {[%clk 0:00:08.9]} 40. Qc4+
{[%clk 0:00:01]} 40... Kb8 {[%clk 0:00:08.7]} 0-1